bitfinex-derivatives/quotes_SOLF0:USTF0_20250720
["timestamp","ask_amount","ask_price","bid_price","bid_amount"]
[1753034422099,3.21,180.67,180.63,3.13]
[1753034422398,3.21,180.7,180.63,3.13]
[1753034422593,3.21,180.7,180.64,2.70334906]
[1753034422788,3.21,180.7,180.66,2.70334906]
[1753034422992,3.21,180.73,180.67,3.13]
[1753034423199,3.21,180.75,180.68,2.70334906]
[1753034423388,2.70334906,180.77,180.71,5.531]
[1753034423592,3.21,180.74,180.72,3.13]
[1753034423793,175.43435284,180.79,180.71,3.13]
[1753034423794,3.21,180.76,180.71,3.13]
[1753034423994,3.21,180.75,180.72,5.5307]
[1753034424194,3.21,180.74,180.71,3.13]
[1753034424394,3.21,180.77,180.71,3.13]
[1753034424698,3.21,180.75,180.72,3.13]
[1753034424998,5.52071391,180.74,180.72,3.13]
[1753034425198,3.21,180.74,180.72,3.13]
[1753034425401,179.83447557,180.79,180.67,3.13]
[1753034425402,3.21,180.72,180.67,3.13]
[1753034425594,3.21,180.72,180.61,4.40012273]
[1753034425794,3.21,180.71,180.68,3.13]
[1753034426000,3.21,180.7,180.68,3.13]
[1753034426196,3.21,180.69,180.68,3.13]
[1753034426699,3.21,180.69,180.61,4.40012273]
[1753034426895,3.21,180.69,180.68,3.13]
[1753034427295,3.21,180.78,180.68,3.13]
[1753034427496,3.21,180.76,180.68,3.13]
[1753034428003,3.21,180.74,180.72,3.13]
[1753034428201,3.01,180.73,180.72,3.13]
[1753034428597,3.01,180.75,180.68,3.25]
[1753034428802,3.01,180.75,180.71,3.25]
[1753034429204,3.01,180.75,180.72,5.5307]
[1753034429398,3.01,180.75,180.74,3.25]
[1753034431106,3.01,180.75,180.73,5.5306]
[1753034431302,3.01,180.75,180.73,8.7806]
[1753034431904,3.01,180.75,180.74,8.7803]
[1753034432409,5.28077622,180.75,180.74,8.7803]
[1753034432804,2.27077622,180.75,180.74,8.7803]
[1753034433009,3.01,180.78,180.74,3.25]
[1753034433210,2.27118977,180.77,180.74,3.25]
[1753034433510,3.01,180.78,180.77,8.7794]
[1753034433809,5.28219991,180.78,180.77,8.7794]
[1753034434009,5.28219991,180.78,180.77,3.25]
[1753034435210,5.28219991,180.78,180.77,8.7794]
[1753034435412,5.28219991,180.78,180.77,3.25]
[1753034435817,2.27219991,180.78,180.77,3.25]
[1753034436020,5.28219991,180.78,180.77,3.25]
[1753034436826,5.28219991,180.78,180.77,8.7794]
[1753034438018,3.01,180.81,180.8,5.5285]
[1753034438229,3.01,180.88,180.8,3.25]
[1753034438428,5.28209382,180.87,180.83,3.25]
[1753034438621,3.01,180.87,180.83,3.25]
[1753034438817,3.01,180.87,180.82,4.40012273]
[1753034439017,3.01,180.87,180.86,3.25]
[1753034439231,5.28251211,180.87,180.86,3.25]
[1753034439423,3.01,180.87,180.86,8.7767]
[1753034439621,8.5352,180.91,180.86,8.7767]
[1753034439824,3.01,180.89,180.86,8.7767]
[1753034440028,3.01,180.87,180.83,3.25]
[1753034440226,3.01,180.87,180.8,3.25]
[1753034441231,3.01,180.86,180.79,3.25]
[1753034441727,3.01,180.86,180.81,4.40012273]
[1753034441929,3.01,180.86,180.85,5.527]
[1753034442630,3.01,180.86,180.85,8.777]
[1753034443023,3.01,180.88,180.85,3.25]
[1753034443328,3.01,180.87,180.85,3.25]
[1753034443525,3.01,180.87,180.86,5.5267]
[1753034443826,3.01,180.91,180.85,3.25]
[1753034444027,3.01,180.91,180.87,3.25]
[1753034444326,3.01,180.92,180.85,3.25]
[1753034444622,3.01,180.92,180.81,11.0562]
[1753034444623,3.01,180.92,180.91,5.525]
[1753034445030,3.01,180.92,180.91,8.775]
[1753034445229,3.01,180.94,180.92,8.7746]
[1753034445624,3.01,180.93,180.92,3.25]
[1753034446024,3.01,180.93,180.91,5.525]
[1753034446222,3.01,180.93,180.91,3.25]
[1753034447427,3.01,180.93,180.91,8.775]
[1753034447625,3.01,180.92,180.91,8.775]
[1753034447821,3.01,180.92,180.91,3.25]
[1753034448016,3.01,180.91,180.9,8.7754]
[1753034449728,3.01,180.93,180.91,5.5249]
[1753034449929,3.01,180.92,180.91,5.5249]
[1753034450532,3.01,180.92,180.91,8.7749]
[1753034450827,3.01,180.94,180.93,5.5245]
[1753034451633,3.01,180.94,180.93,8.7745]
[1753034452639,3.01,180.94,180.93,5.5245]
[1753034453238,3.01,180.94,180.93,8.7745]
[1753034457135,3.01,180.98,180.95,3.25]
[1753034457928,2.69408262,181.03,180.95,2.69408262]
[1753034458132,3.12,180.98,180.97,8.7431]
[1753034458332,3.12,180.97,180.95,3.22]
[1753034458539,3.12,181.0,180.96,3.22]
[1753034458731,3.12,181.0,180.99,5.5225]
[1753034460936,3.12,181.0,180.98,5.5229]
[1753034461234,3.12,180.98,180.88,5.91408262]
[1753034461430,3.12,180.96,180.95,5.5239]
[1753034461937,3.12,180.98,180.91,3.22]
[1753034462129,3.12,180.98,180.95,3.22]
[1753034462331,2.69408262,181.03,180.95,3.22]
[1753034462529,3.12,181.0,180.97,5.5231]
[1753034462738,3.12,181.0,180.95,3.22]
[1753034462932,3.12,180.99,180.96,3.22]
[1753034463133,3.12,180.98,180.97,3.22]
[1753034463536,3.12,180.98,180.95,3.22]
[1753034463732,3.12,180.98,180.92,3.22]
[1753034464042,3.12,180.97,180.95,5.5237]
[1753034464242,3.12,180.97,180.9,2.69408262]
[1753034464243,3.12,180.97,180.91,3.22]
[1753034464641,3.12,180.97,180.95,5.5236]
[1753034464844,3.12,180.97,180.91,3.22]
[1753034465141,3.12,180.97,180.93,3.22]
[1753034465340,3.12,180.97,180.94,3.22]
[1753034465542,3.12,180.97,180.96,5.5236]
[1753034466938,3.12,180.99,180.97,3.22]
[1753034467139,3.12,180.99,180.94,2.69408262]
[1753034467341,3.12,181.02,180.95,3.22]
[1753034467642,3.12,181.0,180.95,3.22]
[1753034467841,3.12,181.0,180.96,3.22]
[1753034468540,5.5219,181.02,180.92,2.69408262]
[1753034468743,3.12,181.01,180.94,2.69408262]
[1753034468937,3.12,181.01,180.95,3.22]
[1753034469547,2.69408262,181.03,180.95,3.22]
[1753034469746,3.12,181.02,180.95,3.22]
[1753034470146,5.5226,181.0,180.97,5.5231]
[1753034470344,3.12,180.99,180.97,5.5231]
[1753034470541,3.12,180.99,180.95,3.22]
[1753034470744,3.12,180.99,180.92,3.22]
[1753034471450,3.12,180.98,180.97,5.5232]
[1753034471747,3.12,180.98,180.97,8.7432]
[1753034472247,3.12,181.0,180.99,5.5224]
[1753034472445,3.12,181.0,180.95,2.69408262]
[1753034472645,2.80494256,181.04,180.94,3.22]
[1753034472646,2.69408262,181.02,180.94,3.22]
[1753034472843,2.69408262,181.0,180.94,3.22]
[1753034473049,3.12,180.98,180.94,3.22]
[1753034473652,3.12,180.98,180.92,3.22]
[1753034473851,3.12,180.95,180.88,3.22]
[1753034474145,3.12,180.95,180.93,5.5244]
[1753034474346,3.12,180.97,180.9,3.22]
[1753034474650,3.12,180.97,180.92,3.22]
[1753034474954,3.12,180.96,180.93,3.22]
[1753034475150,3.12,180.98,180.9,3.22]
[1753034475451,3.12,180.95,180.94,5.524]
[1753034475851,3.12,180.95,180.94,8.744]
[1753034478852,3.12,180.95,180.94,5.524]
[1753034479060,3.12,180.95,180.88,2.69408262]
[1753034479251,3.12,180.95,180.89,5.55459859]
[1753034479450,3.12,180.95,180.9,2.33597042]
[1753034479644,3.12,180.94,180.92,3.22]
[1753034479852,3.12,180.94,180.9,2.69408262]
[1753034480159,3.12,180.94,180.93,8.7445]
[1753034480752,3.12,180.94,180.93,3.22]
[1753034481557,3.12,180.96,180.91,3.22]
[1753034481853,3.12,180.96,180.93,3.22]
[1753034482257,3.12,180.96,180.94,5.5241]
[1753034482456,3.12,180.96,180.95,3.22]
[1753034484452,3.12,180.96,180.85,3.22]
[1753034484752,3.12,180.96,180.91,3.22]
[1753034485054,3.12,180.95,180.93,8.7443]
[1753034485256,3.12,180.94,180.93,8.7443]
[1753034485557,3.12,180.94,180.93,5.5666742]
[1753034486154,3.12,180.94,180.93,11.0911742]
[1753034488052,3.12,180.94,180.93,5.5666742]
[1753034488653,6.09577193,180.98,180.94,3.17]
[1753034488851,3.05,180.95,180.94,3.17]
[1753034489047,3.05,180.95,180.94,2.33245222]
[1753034489850,8.5739,180.95,180.94,2.33245222]
[1753034490558,3.05,180.95,180.94,2.33245222]
[1753034491858,8.5739,180.95,180.94,2.33245222]
[1753034492058,3.05,180.95,180.94,2.33245222]
[1753034494666,8.5739,180.95,180.94,2.33245222]
[1753034495362,3.05,180.95,180.94,2.33245222]
[1753034496264,3.05,180.95,180.93,5.5245]
[1753034496460,3.05,180.95,180.94,2.33288389]
[1753034496661,3.05,180.95,180.94,2.33296784]
[1753034496864,3.05,180.95,180.94,11.02716784]
[1753034497666,3.05,180.95,180.94,8.6942]
[1753034500156,3.05,180.97,180.95,3.17]
[1753034500363,3.05,180.96,180.95,3.17]
[1753034501466,3.05,180.96,180.95,8.6939]
[1753034501658,3.05,180.96,180.95,3.17]
[1753034505364,3.05,180.97,180.96,3.17]
[1753034505571,3.05,181.0,180.93,3.17]
[1753034505871,3.05,181.0,180.95,3.17]
[1753034506067,3.05,180.99,180.95,3.17]
[1753034506260,3.05,181.0,180.94,2.69408262]
[1753034506460,6.20494157,181.03,180.95,3.17]
[1753034506967,3.05,180.98,180.96,5.5233]
[1753034507164,3.05,180.98,180.97,3.17]
[1753034507660,3.05,180.98,180.97,8.6933]
[1753034507864,5.5223,181.01,180.97,5.5233]
[1753034508171,3.05,181.0,180.99,3.17]
[1753034508869,3.05,181.0,180.99,8.6927]
[1753034509070,0.11085994,181.04,180.99,3.17]
[1753034509265,3.16085994,181.04,181.02,5.5218]
[1753034509467,3.16085994,181.04,181.03,3.17]
[1753034510769,3.16085994,181.04,181.01,3.17]
[1753034510969,3.16085994,181.04,180.99,3.17]
[1753034511172,3.16085994,181.04,180.99,5.86408262]
[1753034511370,3.16085994,181.04,181.01,8.6919]
[1753034511570,3.16085994,181.04,181.02,3.17]
[1753034511875,3.16085994,181.04,181.03,3.17]
[1753034513984,5.63205994,181.04,181.0,3.17]
[1753034514179,3.05,181.03,181.01,5.5219]
[1753034514381,3.05,181.02,181.01,8.6919]
[1753034515380,0.11085994,181.04,181.0,3.17]
[1753034515586,0.11085994,181.04,181.02,3.17]
[1753034515981,0.11085994,181.04,181.03,8.6915]
[1753034521587,0.11085994,181.04,181.03,11.38558262]
[1753034522182,5.994e-05,181.04,181.03,11.38558262]
[1753034522388,3.2,181.1,181.04,2.98]
[1753034522584,0.96127286,181.15,181.08,2.98]
[1753034522783,3.2,181.11,181.09,2.69408262]
[1753034522988,3.2,181.11,181.1,2.98]
[1753034523386,3.2,181.12,181.11,2.98]
[1753034523778,3.2,181.12,181.09,5.67408262]
[1753034524091,3.2,181.16,181.1,2.98]
[1753034524586,3.2,181.14,181.11,2.98]
[1753034525187,5.5182,181.14,181.11,2.98]
[1753034525391,3.2,181.12,181.11,2.98]
[1753034525784,3.2,181.12,181.09,11.19368262]
[1753034525984,3.2,181.12,181.09,5.67408262]
[1753034526188,3.2,181.11,181.1,2.98]
[1753034526686,3.2,181.11,181.1,8.4994]
[1753034526886,5.5183,181.14,181.1,2.98]
[1753034526887,3.2,181.13,181.1,2.98]
[1753034527187,5.5184,181.14,181.1,8.4992]
[1753034527386,3.2,181.13,181.11,2.98]
[1753034527587,3.2,181.12,181.11,2.98]
[1753034527791,3.2,181.12,181.11,8.4989]
[1753034531889,3.2,181.12,181.11,2.98]
[1753034532388,3.2,181.12,181.11,8.4991]
[1753034534493,3.2,181.14,181.12,5.5186]
[1753034534792,5.89408262,181.23,181.14,2.98]
[1753034534994,3.2,181.2,181.14,2.98]
[1753034535290,3.2,181.16,181.15,2.98]
[1753034535691,3.2,181.16,181.15,8.4978]
[1753034536286,3.2,181.17,181.08,2.69408262]
[1753034536484,3.2,181.17,181.15,2.69408262]
[1753034536891,3.2,181.17,181.16,2.98]
[1753034537884,3.2,181.17,181.16,8.4975]
[1753034539884,3.2,181.17,181.15,8.21188262]
[1753034540196,3.2,181.17,181.08,2.69408262]
[1753034540197,3.2,181.17,181.14,5.67408262]
[1753034540390,3.2,181.17,181.15,2.98]
[1753034540693,3.2,181.17,181.09,2.98]
[1753034540891,3.2,181.17,181.14,5.5181]
[1753034541087,3.2,181.17,181.13,2.69408262]
[1753034541293,3.2,181.16,181.14,2.98]
[1753034541595,3.2,181.16,181.15,8.4976]
[1753034542298,3.2,181.16,181.13,2.98]
[1753034542602,3.2,181.19,181.15,2.98]
[1753034542794,3.2,181.19,181.18,2.98]
[1753034542996,3.2,181.19,181.18,8.4967]
[1753034543195,3.2,181.19,181.18,2.98]
[1753034543589,3.2,181.19,181.17,2.98]
[1753034544402,3.2,181.18,181.09,2.98]
[1753034544602,3.2,181.18,181.15,5.5176]
[1753034544798,3.2,181.18,181.14,2.98]
[1753034545000,3.2,181.18,181.13,2.69408262]
[1753034545301,3.2,181.18,181.12,2.98]
[1753034545803,3.2,181.17,181.14,2.98]
[1753034546693,3.2,181.16,181.13,2.98]
[1753034546902,3.2,181.16,181.14,2.98]
[1753034547102,3.2,181.15,181.14,2.98]
[1753034548297,3.26,181.17,181.14,3.13]
[1753034548599,3.26,181.18,181.15,3.13]
[1753034548994,3.26,181.18,181.15,8.6476]
[1753034549194,3.26,181.18,181.16,3.13]
[1753034549401,3.26,181.17,181.16,3.13]
[1753034549799,3.26,181.17,181.14,2.69408262]
[1753034550006,3.26,181.17,181.12,2.69408262]
[1753034550200,3.26,181.17,181.14,8.648]
[1753034550396,3.26,181.17,181.14,3.13]
[1753034550599,5.517,181.18,181.15,3.13]
[1753034550800,3.26,181.17,181.12,2.69408262]
[1753034550999,3.26,181.17,181.14,3.13]
[1753034551307,3.26,181.17,181.15,5.5178]
[1753034551705,3.26,181.17,181.14,3.13]
[1753034551907,3.26,181.17,181.15,5.5178]
[1753034552407,3.26,181.17,181.11,8.6488]
[1753034552605,3.26,181.16,181.09,3.13]
[1753034553007,3.26,181.2,181.12,2.69408262]
[1753034553209,3.26,181.2,181.15,3.13]
[1753034553509,3.26,181.18,181.16,3.13]
[1753034553707,3.26,181.22,181.16,3.13]
[1753034553905,5.5162,181.21,181.16,3.13]
[1753034554106,5.5162,181.21,181.18,5.5167]
[1753034554107,3.26,181.2,181.18,5.5167]
[1753034554302,3.26,181.2,181.18,8.6467]
[1753034554503,5.5158,181.22,181.18,3.13]
[1753034554808,3.26,181.19,181.18,8.6469]
[1753034560008,0.96066253,181.25,181.16,2.69408262]
[1753034560009,3.26,181.21,181.2,5.5162]
[1753034560311,3.26,181.21,181.2,8.6462]
[1753034560708,3.26,181.23,181.22,5.5155]
[1753034560908,3.26,181.23,181.22,8.6455]
[1753034561108,3.26,181.25,181.22,3.13]
[1753034561305,3.26,181.25,181.23,3.13]
[1753034561504,3.26,181.25,181.14,108.42]
[1753034561505,3.26,181.25,181.15,3.13]
[1753034561916,3.26,181.24,181.16,3.13]
[1753034562116,3.26,181.24,181.12,109.42]
[1753034562117,3.26,181.24,181.18,3.13]
[1753034562318,3.26,181.24,181.19,2.69408262]
[1753034562518,3.26,181.23,181.21,5.5157]
[1753034562719,3.26,181.23,181.22,3.13]
[1753034563320,3.26,181.23,181.2,2.69408262]
[1753034563615,3.26,181.23,181.16,5.82408262]
[1753034563920,5.5162,181.21,181.16,11.34158262]
[1753034564119,3.26,181.2,181.16,11.34158262]
[1753034564317,3.26,181.2,181.16,8.21158262]
[1753034564523,5.5164,181.2,181.17,3.13]
[1753034564722,3.26,181.18,181.17,3.13]
[1753034567419,3.26,181.19,181.17,5.5172]
[1753034567621,5.5164,181.2,181.18,3.13]
[1753034568015,3.26,181.19,181.16,5.5175]
[1753034568221,3.26,181.23,181.12,2.69408262]
[1753034568426,3.26,181.21,181.13,3.13]
[1753034568923,5.5171,181.18,181.13,3.13]
[1753034569116,3.26,181.16,181.15,3.13]
[1753034569321,3.26,181.23,181.15,3.13]
[1753034569528,2.69408262,181.23,181.15,3.13]
[1753034569722,3.26,181.19,181.16,3.13]
[1753034570419,3.26,181.17,181.15,5.5177]
[1753034571024,3.26,181.17,181.16,8.6475]
[1753034573328,3.26,181.19,181.17,5.5172]
[1753034573522,3.26,181.19,181.18,3.13]
[1753034573928,3.26,181.21,181.18,3.13]
[1753034574128,3.26,181.2,181.18,3.13]
[1753034574627,5.5156,181.23,181.19,3.13]
[1753034574827,3.26,181.21,181.2,3.13]
[1753034575027,3.26,181.21,181.2,8.6462]
[1753034575422,3.26,181.26,181.2,3.13]
[1753034575623,5.5151,181.25,181.2,5.516]
[1753034575820,3.26,181.23,181.2,5.516]
[1753034576027,3.26,181.23,181.22,3.13]
[1753034577729,3.26,181.23,181.22,8.6457]
[1753034578120,2.98,181.27,181.22,5.5157]
[1753034578323,2.98,181.25,181.24,2.94]
[1753034578929,8.4948,181.25,181.24,2.94]
[1753034579130,2.98,181.24,181.23,2.94]
[1753034579926,2.98,181.24,181.18,2.94]
[1753034580133,2.98,181.24,181.17,2.94]
[1753034580333,2.98,181.22,181.14,2.69408262]
[1753034580528,2.98,181.22,181.18,5.5169]
[1753034580729,2.98,181.21,181.2,2.94]
[1753034581326,2.98,181.21,181.17,2.94]
[1753034581730,2.98,181.2,181.18,2.94]
[1753034581937,2.98,181.24,181.18,2.94]
[1753034582334,2.98,181.2,181.17,2.94]
[1753034582530,2.98,181.2,181.15,2.94]
[1753034582731,2.98,181.2,181.13,2.94]
[1753034583236,5.517,181.18,181.13,2.94]
[1753034583433,5.517,181.18,181.12,8.21278262]
[1753034583634,2.98,181.16,181.15,2.94]
[1753034585738,3.65493082,181.21,181.15,2.94]
[1753034585942,2.98,181.18,181.15,2.94]
[1753034586443,2.98,181.18,181.16,2.94]
[1753034586636,2.98,181.18,181.17,2.94]
[1753034586839,0.96079514,181.23,181.17,2.94]
[1753034587041,2.98,181.22,181.17,2.94]
[1753034587244,2.98,181.22,181.18,2.94]
[1753034587637,2.98,181.19,181.15,8.21188262]
[1753034587834,2.98,181.19,181.16,2.94]
[1753034588038,2.98,181.19,181.13,2.69408262]
[1753034588238,2.69408262,181.22,181.13,2.69408262]
[1753034588239,5.5171,181.18,181.15,2.94]
[1753034588445,2.98,181.17,181.13,5.63408262]
[1753034588644,2.98,181.17,181.14,2.94]
[1753034588944,2.98,181.17,181.15,2.94]
[1753034589145,2.98,181.16,181.15,2.94]
[1753034591346,2.98,181.17,181.15,2.94]
[1753034591845,5.5167,181.19,181.15,2.94]
[1753034592038,8.4967,181.19,181.15,5.63408262]
[1753034592241,8.4967,181.19,181.16,2.94]
[1753034592545,2.98,181.18,181.17,2.94]
[1753034594851,2.98,181.22,181.17,2.94]
[1753034595249,2.98,181.22,181.17,5.63408262]
[1753034595446,2.98,181.2,181.18,5.5168]
[1753034595648,2.98,181.21,181.17,2.69408262]
[1753034595850,2.98,181.21,181.18,5.5166]
[1753034596050,2.98,181.21,181.18,2.94]
[1753034596450,2.98,181.21,181.19,5.5164]
[1753034596651,2.98,181.21,181.2,2.94]
[1753034597751,8.496,181.21,181.2,2.94]
[1753034597947,8.496,181.21,181.18,2.94]
[1753034598148,2.98,181.2,181.18,2.94]
[1753034598641,3.65471863,181.26,181.18,2.94]
[1753034598842,2.98,181.19,181.18,2.94]
[1753034599354,2.98,181.19,181.14,2.94]
[1753034599649,5.5164,181.2,181.13,2.69408262]
[1753034599957,2.98,181.19,181.18,2.94]
[1753034601056,2.98,181.21,181.18,5.63408262]
[1753034601250,2.98,181.21,181.19,2.94]
[1753034601555,2.98,181.21,181.2,2.94]
[1753034602155,2.98,181.21,181.18,5.5168]
[1753034602451,2.98,181.21,181.19,2.94]
[1753034602952,2.98,181.21,181.18,2.94]
[1753034603155,5.5174,181.17,181.13,5.5183]
[1753034603349,5.5174,181.17,181.14,2.94]
[1753034603549,2.98,181.15,181.14,2.94]
[1753034604655,2.98,181.15,181.14,8.4581]
[1753034605045,2.98,181.21,181.14,2.94]
[1753034605250,2.98,181.21,181.15,5.5177]
[1753034605450,2.98,181.18,181.16,2.94]
[1753034605654,2.98,181.17,181.16,2.94]
[1753034605854,2.98,181.18,181.17,2.94]
[1753034606253,2.98,181.18,181.15,5.5178]
[1753034606455,2.98,181.17,181.16,2.94]
[1753034606855,2.98,181.16,181.15,8.4578]
[1753034607353,2.98,181.18,181.17,2.94]
[1753034608657,2.98,181.18,181.17,8.4572]
[1753034609763,3.22,181.2,181.19,3.13]
[1753034609961,3.22,181.25,181.19,3.13]
[1753034610963,5.5151,181.24,181.2,5.5161]
[1753034611168,3.22,181.23,181.2,8.6461]
[1753034611363,3.22,181.23,181.2,3.13]
[1753034611565,5.5157,181.23,181.2,8.6463]
[1753034611761,3.22,181.21,181.2,8.6463]
[1753034612358,3.22,181.23,181.22,3.13]
[1753034613163,3.22,181.22,181.21,3.13]
[1753034613763,3.22,181.22,181.2,5.5163]
[1753034613968,3.22,181.22,181.17,3.13]
[1753034614171,3.22,181.21,181.17,3.13]
[1753034614466,3.22,181.21,181.19,5.5165]
[1753034614669,3.22,181.21,181.2,3.13]
[1753034615269,3.22,181.22,181.21,3.13]
[1753034615765,8.7357,181.22,181.21,3.13]
[1753034616666,8.7357,181.22,181.19,8.6465]
[1753034616867,3.22,181.21,181.2,3.13]
[1753034618568,8.736,181.21,181.2,3.13]
[1753034618870,2.69408262,181.22,181.16,109.54]
[1753034619069,3.22,181.21,181.16,109.54]
[1753034619265,3.22,181.21,181.16,112.67]
[1753034619766,3.22,181.17,181.16,112.67]
[1753034620168,5.5172,181.17,181.14,8.6481]
[1753034620368,3.22,181.15,181.14,8.6481]
[1753034620568,3.22,181.16,181.15,3.13]
[1753034621067,2.69408262,181.22,181.16,5.5175]
[1753034621268,3.22,181.17,181.16,3.13]
[1753034621663,2.69408262,181.22,181.14,3.13]
[1753034621866,3.22,181.15,181.07,3.13]
[1753034622060,3.22,181.13,181.07,3.13]
[1753034622266,3.22,181.09,181.08,3.13]
[1753034623271,3.22,181.13,181.06,3.13]
[1753034623862,3.22,181.13,181.07,3.13]
[1753034624566,5.5193,181.11,181.08,5.5198]
[1753034624765,3.22,181.1,181.09,3.13]
[1753034625167,8.7394,181.1,181.09,3.13]
[1753034625670,3.22,181.08,181.07,3.13]
[1753034626670,8.74,181.08,181.07,3.13]
[1753034627073,3.22,181.07,181.06,3.13]
[1753034629172,5.5202,181.08,181.06,3.13]
[1753034629370,8.7402,181.08,181.07,3.13]
[1753034629867,3.22,181.08,181.07,3.13]
[1753034630574,3.22,181.14,181.08,3.13]
[1753034630872,3.22,181.13,181.08,3.13]
[1753034631067,5.5197,181.09,181.08,3.13]
[1753034631368,3.22,181.09,181.04,3.13]
[1753034631569,3.22,181.09,181.05,3.13]
[1753034631968,3.22,181.09,181.06,3.13]
[1753034632470,8.7404,181.07,181.06,3.13]
[1753034632670,3.22,181.07,181.06,3.13]
[1753034632871,5.52,181.08,181.06,3.13]
[1753034633071,8.74,181.08,181.07,3.13]
[1753034633764,3.22,181.08,181.07,3.13]
[1753034634173,2.69408262,181.12,181.05,2.69408262]
[1753034634377,8.7397,181.09,181.08,3.13]
[1753034635474,5.52,181.08,181.06,3.13]
[1753034635769,3.22,181.07,181.06,3.13]
[1753034636367,5.52,181.08,181.06,3.13]
[1753034636570,3.22,181.08,181.07,3.13]
[1753034637672,8.74,181.08,181.07,3.13]
[1753034638567,8.7103,181.07,181.05,3.19]
[1753034638774,3.19,181.06,181.05,3.19]
[1753034639372,3.19,181.07,181.06,3.19]
[1753034639875,8.7101,181.08,181.07,3.19]
[1753034640582,3.19,181.08,181.05,3.19]
[1753034640872,11.99729321,181.15,181.05,3.19]
[1753034640873,3.19,181.1,181.05,3.19]
[1753034641272,2.69408262,181.12,181.07,3.19]
[1753034641479,3.19,181.09,181.08,3.19]
[1753034641678,3.19,181.11,181.08,3.19]
[1753034641982,3.19,181.1,181.09,3.19]
[1753034642273,8.7096,181.1,181.09,3.19]
[1753034642776,8.7096,181.1,181.07,3.19]
[1753034642979,3.19,181.1,181.07,3.19]
[1753034643575,8.7094,181.1,181.07,3.19]
[1753034644070,3.19,181.09,181.07,3.19]
[1753034644273,5.5194,181.1,181.08,3.19]
[1753034644474,8.7094,181.1,181.09,3.19]
[1753034647578,3.19,181.1,181.09,8.7097]
[1753034647777,3.19,181.1,181.09,3.19]
[1753034648182,8.7094,181.1,181.09,3.19]
[1753034649379,5.5194,181.1,181.07,8.21418262]
[1753034649574,3.19,181.09,181.08,3.19]
[1753034650386,3.19,181.1,181.08,3.19]
[1753034650683,3.19,181.14,181.08,3.19]
[1753034650885,3.19,181.11,181.09,5.5196]